fUSD/lending_fUSD_20260702
["ID","MTS","AMOUNT","RATE_DAILY","PERIOD"]
[426869825,1782968978000,810.86302477,0.00023074,2]
[426869827,1782968978000,10000.0,0.00022413,7]
[426869826,1782968978000,4780.11854614,0.00022413,7]
[426869828,1782968978000,4764.64145386,0.00022413,7]
[426869829,1782968978000,5235.35854614,0.00023743,7]
[426869831,1782968978000,3984.45145386,0.00023743,7]
[426869830,1782968978000,10000.0,0.00023743,7]
[426869824,1782968978000,810.86302477,0.00023074,2]
[426869832,1782968983000,282.84,0.00037039,120]
[426869833,1782968985000,500.0,0.00024212,2]
[426869835,1782968985000,500.0,0.00029899,120]
[426869834,1782968985000,500.0,0.00024212,2]
[426869836,1782969002000,151.0,0.00024,2]
[426869839,1782969004000,531.97,0.00029899,120]
[426869838,1782969004000,531.97,0.00024212,2]
[426869837,1782969004000,531.97,0.00024212,2]
[426869845,1782969019000,-170.964018,0.0002487,2]
[426869841,1782969019000,-500.0,0.00024866,2]
[426869840,1782969019000,-155.08542174,0.00024402,7]
[426869842,1782969019000,-500.0,0.00024866,2]
[426869844,1782969019000,-739.23483311,0.00024866,2]
[426869847,1782969019000,-152.09732464,0.00024967,2]
[426869843,1782969019000,-500.0,0.00024866,2]
[426869853,1782969019000,-6037.21884595,0.00025072,7]
[426869848,1782969019000,-157.0,0.00025,2]
[426869850,1782969019000,-161.0,0.00025,2]
[426869849,1782969019000,-155.0,0.00025,2]
[426869852,1782969019000,-151.0,0.00025,2]
[426869851,1782969019000,-151.0,0.00025,2]
[426869846,1782969019000,-470.39955656,0.000249,2]
[426869855,1782969020000,-1037.7129418,0.00025168,2]
[426869854,1782969020000,-7043.54115405,0.00025072,7]
[426869856,1782969020000,-190.39736957,0.00025528,2]
[426869857,1782969020000,-229.70821347,0.00025528,2]
[426869858,1782969020000,-150.99,0.00025528,2]
[426869859,1782969020000,-235.74500099,0.0002553,2]
[426869860,1782969020000,-1111.90532012,0.0002553,2]
[426869861,1782969020000,-500.0,0.00024212,2]
[426869862,1782969020000,-7689.70467988,0.0002553,2]
[426869864,1782969020000,-470.39955656,0.000259,2]
[426869863,1782969020000,-308.39,0.00025786,2]
[426869865,1782969020000,-157.0,0.00026,2]
[426869866,1782969020000,-170.94,0.00026,2]
[426869868,1782969020000,-151.0,0.00026,2]
[426869867,1782969020000,-161.0,0.00026,2]
[426869870,1782969020000,-240.56576356,0.00026084,2]
[426869869,1782969020000,-151.0,0.00026,2]
[426869871,1782969021000,-501.95764274,0.00024212,2]
[426869872,1782969021000,-151.55753778,0.00026084,2]
[426869874,1782969021000,-459.41642694,0.00026086,2]
[426869875,1782969021000,-467.1926252,0.00026086,2]
[426869876,1782969021000,-1037.7129418,0.00026135,2]
[426869873,1782969021000,-380.79473915,0.00026086,2]
[426869877,1782969021000,-7001.36808639,0.00026402,7]
[426869879,1782969021000,-330.18,0.00026419,2]
[426869880,1782969021000,-503.0,0.00026493,2]
[426869881,1782969021000,-152.09732457,0.00026647,2]
[426869883,1782969021000,-216.69616408,0.0002674,2]
[426869882,1782969021000,-1769.84629326,0.000267,2]
[426869884,1782969021000,-258.91189215,0.00026744,2]
[426869878,1782969021000,-5499.01191361,0.00026402,7]
[426869885,1782969022000,-470.39955656,0.000269,2]
[426869886,1782969022000,-799.85685577,0.00027,2]
[426869887,1782969022000,-1012.7831887,0.00024397,2]
[426869888,1782969022000,-969.98943749,0.00027,2]
[426869889,1782969022000,-159.60177037,0.00027,2]
[426869890,1782969022000,-151.0,0.00027,2]
[426869891,1782969022000,-151.0,0.00027,2]
[426869892,1782969022000,-1037.7129418,0.00027101,2]
[426869893,1782969022000,-1769.84629326,0.000273,2]
[426869894,1782969022000,-1500.0,0.00027397,2]
[426869896,1782969022000,-222.83270693,0.00027397,2]
[426869897,1782969022000,-445.66541386,0.00027397,2]
[426869899,1782969022000,-1376.43585231,0.000275,2]
[426869898,1782969022000,-1010.5416903,0.00027397,2]
[426869900,1782969022000,1402764.46602516,0.00037039,120]
[426869901,1782969022000,-393.41044095,0.000275,2]
[426869903,1782969022000,-162.3,0.00027646,30]
[426869902,1782969022000,-500.0,0.000275,7]
[426869904,1782969022000,-8944.28955905,0.00027732,7]
[426869895,1782969022000,-192.59070498,0.00027397,2]
[426869913,1782969023000,-161.84,0.0002818,30]
[426869914,1782969023000,-421.9929953,0.0002819,2]
[426869910,1782969023000,-155.0,0.00028,2]
[426869912,1782969023000,-1037.7129418,0.00028068,2]
[426869908,1782969023000,-170.94,0.00028,2]
[426869907,1782969023000,-470.39955656,0.000279,2]
[426869906,1782969023000,-1769.84629326,0.000278,2]
[426869905,1782969023000,-2120.80044095,0.00027732,7]
[426869909,1782969023000,-162.44085051,0.00028,2]
[426869916,1782969023000,-152.09732457,0.00028327,2]
[426869911,1782969023000,-263.0,0.00028042,5]
[426869915,1782969023000,-1000.0,0.00028315,2]
[426869917,1782969023000,-174.22,0.00028405,30]
[426869926,1782969023000,-470.39955656,0.000289,2]
[426869925,1782969023000,-210.05,0.00028863,7]
[426869923,1782969023000,-529.87040295,0.00028772,2]
[426869924,1782969023000,-166.73,0.00028863,7]
[426869927,1782969023000,-150.80999364,0.00028973,2]
[426869921,1782969023000,-1000.0,0.00028543,2]
[426869919,1782969023000,-159.46,0.00028484,30]
[426869918,1782969023000,-155.06,0.00028415,30]
[426869920,1782969023000,-155.06,0.00028496,30]
[426869922,1782969023000,-470.12959705,0.00028772,2]
[426869936,1782969024000,-3348.89769419,0.00029,7]
[426869928,1782969024000,-162.31,0.00029,7]
[426869929,1782969024000,-500.0,0.00029,2]
[426869931,1782969024000,-166.73,0.00029,7]
[426869930,1782969024000,-222.44,0.00029,7]
[426869932,1782969024000,-762.50774104,0.00029,2]
[426869935,1782969024000,-6298.10230581,0.00029,7]
[426869933,1782969024000,-210.05,0.00029,7]
[426869934,1782969024000,-150.0,0.00029,7]
[426869938,1782969024000,-1037.7129418,0.00029034,2]
[426869944,1782969024000,-834.68239104,0.00029715,10]
[426869937,1782969024000,-2000.0,0.00029019,21]
[426869940,1782969024000,-210.84697297,0.00029315,2]
[426869941,1782969024000,-2000.0,0.00029529,23]
[426869942,1782969024000,-167.86,0.00029544,2]
[426869943,1782969024000,-250.0,0.00029632,7]
[426869945,1782969024000,-7971.17760896,0.00029715,10]
[426869946,1782969024000,-2028.82239104,0.00029725,10]
[426869947,1782969024000,-8538.21760896,0.00029725,10]
[426869948,1782969024000,-1461.78239104,0.00029735,2]
[426869939,1782969024000,-150.0,0.000293,2]
[426869950,1782969025000,-3782.3985694,0.00029735,2]
[426869949,1782969025000,-5996.40190336,0.00029735,2]
[426869951,1782969025000,-221.19952724,0.00029735,2]
[426869952,1782969025000,-155.07,0.00028575,30]
[426869956,1782969025000,-433.4571983,0.000299,2]
[426869953,1782969025000,-5644.46266166,0.00029735,2]
[426869955,1782969025000,-470.39955656,0.000299,2]
[426869958,1782969025000,-433.45719824,0.000299,2]
[426869957,1782969025000,-433.45719824,0.000299,2]
[426869954,1782969025000,-216.0,0.00029768,2]
[426869960,1782969026000,-433.45719824,0.000299,2]
[426869959,1782969026000,-433.45719824,0.000299,2]
[426869961,1782969026000,-433.45719824,0.000299,2]
[426869963,1782969026000,-433.45719824,0.000299,2]
[426869964,1782969026000,-46.4101958,0.000299,2]
[426869965,1782969026000,-159.46,0.00028564,30]
[426869962,1782969026000,-433.45719824,0.000299,2]
[426869966,1782969026000,-387.04700244,0.000299,2]
[426869969,1782969026000,-433.45719824,0.000299,2]
[426869968,1782969026000,-433.45719824,0.000299,2]
[426869970,1782969026000,-433.45719824,0.000299,2]
[426869971,1782969026000,-1000.0,0.00029999,30]
[426869972,1782969026000,-612.93854249,0.00029999,30]
[426869973,1782969026000,-6106.72566211,0.0003,2]
[426869967,1782969026000,-433.45719824,0.000299,2]
[426869974,1782969027000,921.31315213,0.00037039,120]
[426869975,1782969027000,-833.29260474,0.0003,2]
[426869976,1782969027000,-2500.0,0.0003,2]
[426869978,1782969027000,-800.0,0.0003,2]
[426869979,1782969027000,-800.0,0.0003,2]
[426869977,1782969027000,-5057.08040005,0.0003,30]
[426869981,1782969031000,-362.7585741,0.00030001,2]
[426869984,1782969031000,-152.09732457,0.00030008,2]
[426869983,1782969031000,-674.9543677,0.00030001,2]
[426869985,1782969031000,-433.45719824,0.00030058,2]
[426869987,1782969031000,-162.5,0.00030094,30]
[426869986,1782969031000,-162.5,0.00030094,30]
[426869988,1782969031000,-162.5,0.00030094,30]
[426869990,1782969031000,-2000.0,0.00030132,90]
[426869996,1782969031000,-2088.88125,0.00030137,7]
[426869995,1782969031000,-2621.99918094,0.00030137,7]
[426869993,1782969031000,-9000.0,0.00030137,5]
[426869989,1782969031000,-150.0,0.000301,10]
[426869992,1782969031000,-361.56980077,0.00030137,2]
[426869991,1782969031000,-2000.0,0.00030135,15]
[426869994,1782969031000,-7161.0534887,0.00030137,7]
[426870021,1782969032000,9.62699521,0.00027397,2]
[426870022,1782969032000,1490.37300479,0.00027397,2]
[426870051,1782969038000,-646.19049916,0.00030832,2]
[426870052,1782969038000,-729.69361755,0.00030856,2]
[426870058,1782969038000,-800.0,0.00031,2]
[426870050,1782969038000,-2000.0,0.0003082,32]
[426870049,1782969038000,-2000.0,0.00030711,17]
[426870048,1782969038000,-2000.0,0.00030699,8]
[426870047,1782969038000,-500.0,0.00030624,120]
[426870040,1782969038000,-2000.0,0.0003041,59]
[426870044,1782969038000,-800.0,0.000305,2]
[426870045,1782969038000,-433.45719824,0.00030532,2]
[426870043,1782969038000,-800.0,0.000305,2]
[426870042,1782969038000,-1034.06,0.000305,2]
[426870041,1782969038000,-163.64,0.00030411,120]
[426870038,1782969038000,-162.711,0.00030373,26]
[426870054,1782969038000,-1037.7129418,0.00030967,2]
[426870037,1782969038000,-2176.653,0.00030373,26]
[426870032,1782969038000,-500.0,0.00030249,120]
[426870034,1782969038000,-2500.0,0.0003025,2]
[426870036,1782969038000,-2000.0,0.00030371,26]
[426870031,1782969038000,-2118.53305776,0.00030137,7]
[426870035,1782969038000,-2000.0,0.00030342,16]
[426870033,1782969038000,-500.0,0.00030249,120]
[426870030,1782969038000,-331.64,0.00030137,7]
[426870046,1782969038000,-500.0,0.00030624,120]
[426870039,1782969038000,-2000.0,0.00030409,31]
[426870057,1782969038000,-1000.0,0.00031,7]
[426870053,1782969038000,-470.39955656,0.000309,2]
[426870084,1782969038000,-733.13602864,0.000315,2]
[426870083,1782969038000,-116.9274531,0.00031493,11]
[426870076,1782969038000,-729.69361755,0.00031464,2]
[426870077,1782969038000,-433.45719824,0.00031479,2]
[426870079,1782969038000,-7338.22,0.00031483,10]
[426870075,1782969038000,-2042.41850998,0.00031413,2]
[426870074,1782969038000,-2042.41850998,0.00031379,2]
[426870056,1782969038000,-160.0,0.00031,120]
[426870072,1782969038000,-822.94223496,0.0003135,2]
[426870081,1782969038000,-307.31,0.00031487,3]
[426870082,1782969038000,-683.0725469,0.00031493,11]
[426870070,1782969038000,-822.94223496,0.0003135,2]
[426870073,1782969038000,-2000.0,0.00031355,60]
[426870069,1782969038000,-822.94223499,0.0003135,2]
[426870071,1782969038000,-622.82934876,0.0003135,2]
[426870059,1782969038000,-624.01918282,0.00031,2]
[426870060,1782969038000,-175.98081718,0.00031,2]
[426870061,1782969038000,-433.45719824,0.00031005,2]
[426870065,1782969038000,-2000.0,0.00031231,33]
[426870055,1782969038000,-2000.0,0.00030999,11]
[426870063,1782969038000,-1584.11073726,0.00031171,2]
[426870064,1782969038000,-458.30777272,0.00031171,2]
[426870062,1782969038000,-252.82883129,0.00031136,4]
[426870066,1782969038000,-218.9,0.00031269,30]
[426870067,1782969038000,-391.45232695,0.0003135,2]
[426870068,1782969038000,-622.82934877,0.0003135,2]
[426870091,1782969039000,-470.39955656,0.000319,2]
[426870093,1782969039000,-433.45719824,0.00031953,2]
[426870094,1782969039000,-168.7971981,0.00031982,2]
[426870088,1782969039000,-2042.41850998,0.00031569,2]
[426870086,1782969039000,-800.0,0.000315,2]
[426870090,1782969039000,-330.18,0.00031703,120]
[426870087,1782969039000,-188.26400183,0.00031507,15]
[426870085,1782969039000,-66.86397136,0.000315,2]
[426870092,1782969039000,-1037.7129418,0.00031934,2]
[426870097,1782969039000,-190.70370481,0.00032,120]
[426870096,1782969039000,-18506.0,0.00032,5]
[426870089,1782969039000,-152.09732457,0.00031688,2]
[426870098,1782969039000,-177.73199773,0.00032,120]
[426870103,1782969039000,-173.21879951,0.00032,120]
[426870108,1782969039000,-183.50788573,0.00032,120]
[426870105,1782969039000,-212.66116667,0.00032,120]
[426870107,1782969039000,-186.55433378,0.00032,120]
[426870106,1782969039000,-752.29499255,0.00032,120]
[426870095,1782969039000,-2000.0,0.00031999,12]
[426870099,1782969039000,-176.19471077,0.00032,120]
[426870102,1782969039000,-193.29662383,0.00032,120]
[426870101,1782969039000,-232.75028762,0.00032,120]
[426870100,1782969039000,-185.69849148,0.00032,120]
[426870104,1782969039000,-199.41399457,0.00032,120]
[426870145,1782969040000,-2000.0,0.00032699,14]
[426870147,1782969040000,-2042.41850998,0.00032723,2]
[426870143,1782969040000,-1307.24,0.00032674,2]
[426870148,1782969040000,-258.26731416,0.00032781,2]
[426870144,1782969040000,-2000.0,0.00032684,36]
[426870138,1782969040000,-2000.0,0.00032571,30]
[426870146,1782969040000,-2000.0,0.00032699,13]
[426870140,1782969040000,-2042.41850998,0.00032616,2]
[426870149,1782969040000,-2000.0,0.00032799,10]
[426870139,1782969040000,-2000.0,0.00032599,4]
[426870142,1782969040000,-2000.0,0.00032669,34]
[426870150,1782969040000,-250.24360219,0.000328,2]
[426870154,1782969040000,-2000.0,0.00032875,2]
[426870151,1782969040000,-174.0,0.00032853,2]
[426870137,1782969040000,-2000.0,0.00032512,3]
[426870153,1782969040000,-600.0,0.0003287,2]
[426870155,1782969040000,-2000.0,0.00032875,37]
[426870156,1782969040000,-2000.0,0.00032876,5]
[426870159,1782969040000,-500.0,0.00032877,2]
[426870157,1782969040000,-2000.0,0.00032876,7]
[426870160,1782969040000,-500.0,0.00032877,2]
[426870158,1782969040000,-352.55,0.00032877,2]
[426870161,1782969040000,-500.0,0.00032877,2]
[426870163,1782969040000,-500.0,0.00032877,2]
[426870162,1782969040000,-500.0,0.00032877,2]
[426870152,1782969040000,-281.76115409,0.0003286,2]
[426870130,1782969040000,-2000.0,0.00032292,6]
[426870131,1782969040000,-500.0,0.00032301,120]
[426870164,1782969040000,-500.0,0.00032877,2]
[426870110,1782969040000,-229.72760755,0.00032,120]
[426870109,1782969040000,-200.0,0.00032,120]
[426870111,1782969040000,-191.2900957,0.00032,120]
[426870124,1782969040000,-210.84689862,0.00032155,120]
[426870113,1782969040000,-800.0,0.00032,5]
[426870123,1782969040000,-231.12919817,0.00032155,120]
[426870112,1782969040000,-170.39085142,0.00032,120]
[426870117,1782969040000,-2042.41850998,0.00032131,2]
[426870114,1782969040000,-800.0,0.00032,5]
[426870122,1782969040000,-231.12919817,0.00032155,120]
[426870118,1782969040000,-150.0,0.00032155,120]
[426870121,1782969040000,-210.84689862,0.00032155,120]
[426870116,1782969040000,-2000.0,0.00032053,35]
[426870115,1782969040000,-1859.01482054,0.0003201,2]
[426870120,1782969040000,-190.56459908,0.00032155,120]
[426870119,1782969040000,-170.28229954,0.00032155,120]
[426870125,1782969040000,-190.56459908,0.00032155,120]
[426870135,1782969040000,-800.0,0.000325,5]
[426870136,1782969040000,-800.0,0.000325,5]
[426870127,1782969040000,-150.00000001,0.00032155,120]
[426870126,1782969040000,-170.28229954,0.00032155,120]
[426870128,1782969040000,-2042.41850998,0.00032196,2]
[426870129,1782969040000,-4187.93,0.00032232,7]
[426870133,1782969040000,-433.45719824,0.00032426,2]
[426870132,1782969040000,-500.0,0.00032301,120]
[426870134,1782969040000,-2042.41850998,0.00032482,2]
[426870167,1782969040000,-200.0,0.00032877,2]
[426870141,1782969040000,-200.0,0.00032654,2]
[426870170,1782969040000,-281.76115408,0.0003288,2]
[426870197,1782969040000,-1714.68384687,0.000329,30]
[426870196,1782969040000,-1714.68384687,0.000329,30]
[426870198,1782969040000,-1714.68384687,0.000329,30]
[426870199,1782969040000,-3754.14163834,0.000329,30]
[426870200,1782969040000,-3754.14163834,0.000329,30]
[426870203,1782969040000,-3754.14163834,0.000329,30]
[426870205,1782969040000,-3754.14163834,0.000329,30]
[426870206,1782969040000,-3754.14163834,0.000329,30]
[426870207,1782969040000,-3754.14163834,0.000329,30]
[426870204,1782969040000,-3754.14163834,0.000329,30]
[426870209,1782969040000,-261.12,0.000329,30]
[426870208,1782969040000,-3754.14163834,0.000329,30]
[426870194,1782969040000,-1714.68384687,0.000329,30]
[426870211,1782969040000,-1037.7129418,0.000329,2]
[426870214,1782969040000,-2595.56647964,0.000329,2]
[426870213,1782969040000,-470.39955656,0.000329,2]
[426870210,1782969040000,-289.61172438,0.000329,2]
[426870215,1782969040000,-433.45719824,0.000329,2]
[426870216,1782969040000,-1623.92386914,0.00032919,2]
[426870218,1782969040000,-2042.41850998,0.00032935,2]
[426870217,1782969040000,-151.0,0.00032932,14]
[426870222,1782969040000,-5000.0,0.0003296,2]
[426870166,1782969040000,-1007.56340167,0.00032877,7]
[426870221,1782969040000,-5000.0,0.0003296,2]
[426870219,1782969040000,-25664.0,0.00032959,2]
[426870223,1782969040000,-5000.0,0.0003296,2]
[426870212,1782969040000,-281.76115408,0.000329,2]
[426870201,1782969040000,-3754.14163834,0.000329,30]
[426870220,1782969040000,-5026.18276465,0.0003296,2]
[426870192,1782969040000,-1714.68384687,0.000329,30]
[426870165,1782969040000,-441.53398597,0.00032877,2]
[426870195,1782969040000,-1714.68384687,0.000329,30]
[426870171,1782969040000,-151.0,0.00032897,14]
[426870168,1782969040000,-200.0,0.00032877,2]
[426870172,1782969040000,-281.0,0.00032899,120]
[426870173,1782969040000,-500.0,0.00032899,120]
[426870174,1782969040000,-500.0,0.00032899,120]
[426870176,1782969040000,-531.97,0.00032899,120]
[426870180,1782969040000,-5346.0044033,0.000329,30]
[426870182,1782969040000,-5346.0044033,0.000329,30]
[426870175,1782969040000,-500.0,0.00032899,120]
[426870178,1782969040000,-808.65733387,0.000329,2]
[426870179,1782969040000,-5346.0044033,0.000329,30]
[426870169,1782969040000,-2000.0,0.00032877,50]
[426870177,1782969040000,-330.0,0.000329,5]
[426870181,1782969040000,-5346.0044033,0.000329,30]
[426870193,1782969040000,-1714.68384687,0.000329,30]
[426870189,1782969040000,-1714.68384687,0.000329,30]
[426870202,1782969040000,-3754.14163834,0.000329,30]
[426870188,1782969040000,-5346.0044033,0.000329,30]
[426870191,1782969040000,-1714.68384687,0.000329,30]
[426870187,1782969040000,-5346.0044033,0.000329,30]
[426870185,1782969040000,-5346.0044033,0.000329,30]
[426870186,1782969040000,-5346.0044033,0.000329,30]
[426870184,1782969040000,-5346.0044033,0.000329,30]
[426870183,1782969040000,-5346.0044033,0.000329,30]
[426870190,1782969040000,-1714.68384687,0.000329,30]
[426870254,1782969041000,-151.0,0.00032999,7]
[426870255,1782969041000,-256.0531,0.00032999,7]
[426870253,1782969041000,-256.0531,0.00032999,7]
[426870257,1782969041000,-151.0,0.00032999,7]
[426870252,1782969041000,-151.0,0.00032999,7]
[426870256,1782969041000,-324.624357,0.00032999,7]
[426870258,1782969041000,-151.0,0.00032999,7]
[426870259,1782969041000,-324.624357,0.00032999,7]
[426870260,1782969041000,-324.624357,0.00032999,7]
[426870261,1782969041000,-324.624357,0.00032999,7]
[426870262,1782969041000,-151.0,0.00032999,7]
[426870267,1782969041000,-500.0,0.00032999,120]
[426870264,1782969041000,-151.0,0.00032999,7]
[426870272,1782969041000,-250.901244,0.00032999,7]
[426870266,1782969041000,-500.0,0.00032999,120]
[426870265,1782969041000,-500.0,0.00032999,120]
[426870268,1782969041000,-545.07401747,0.00032999,120]
[426870271,1782969041000,-250.901244,0.00032999,7]
[426870269,1782969041000,-250.901244,0.00032999,7]
[426870270,1782969041000,-250.901244,0.00032999,7]
[426870251,1782969041000,-152.289507,0.00032999,7]
[426870273,1782969041000,-151.0,0.00032999,7]
[426870263,1782969041000,-151.0,0.00032999,7]
[426870250,1782969041000,-256.0531,0.00032999,7]
[426870233,1782969041000,-276.99014378,0.0003299,2]
[426870248,1782969041000,-256.0531,0.00032999,7]
[426870274,1782969041000,-151.0,0.00032999,7]
[426870224,1782969041000,-5000.0,0.0003296,2]
[426870225,1782969041000,-1623.92386914,0.00032969,2]
[426870226,1782969041000,-500.0,0.0003297,2]
[426870227,1782969041000,-400.0,0.0003297,2]
[426870229,1782969041000,-323.08878728,0.00032985,120]
[426870228,1782969041000,-500.0,0.00032985,120]
[426870232,1782969041000,-276.99014378,0.0003299,2]
[426870231,1782969041000,-531.97,0.00032985,120]
[426870235,1782969041000,-151.0,0.00032996,14]
[426870236,1782969041000,-151.0,0.00032997,14]
[426870249,1782969041000,-151.0,0.00032999,7]
[426870230,1782969041000,-500.0,0.00032985,120]
[426870237,1782969041000,-288.0,0.00032999,120]
[426870238,1782969041000,-174.426787,0.00032999,7]
[426870240,1782969041000,-174.426787,0.00032999,7]
[426870241,1782969041000,-174.426787,0.00032999,7]
[426870239,1782969041000,-174.426787,0.00032999,7]
[426870244,1782969041000,-151.0,0.00032999,7]
[426870242,1782969041000,-151.0,0.00032999,7]
[426870243,1782969041000,-151.0,0.00032999,7]
[426870246,1782969041000,-151.0,0.00032999,7]
[426870245,1782969041000,-151.0,0.00032999,7]
[426870247,1782969041000,-151.0,0.00032999,7]
[426870234,1782969041000,-276.99014378,0.0003299,2]
[426870276,1782969041000,-151.0,0.00032999,7]
[426870307,1782969041000,-500.0,0.00032999,120]
[426870282,1782969041000,-151.0,0.00032999,7]
[426870305,1782969041000,-500.0,0.00032999,120]
[426870306,1782969041000,-500.0,0.00032999,120]
[426870310,1782969041000,-531.97,0.00032999,120]
[426870311,1782969041000,-531.97,0.00032999,120]
[426870313,1782969041000,-531.97,0.00032999,120]
[426870312,1782969041000,-531.97,0.00032999,120]
[426870314,1782969041000,-531.97,0.00032999,120]
[426870315,1782969041000,-531.97,0.00032999,120]
[426870316,1782969041000,-531.97,0.00032999,120]
[426870317,1782969041000,-531.97,0.00032999,120]
[426870318,1782969041000,-531.97,0.00032999,120]
[426870320,1782969041000,-531.97,0.00032999,120]
[426870321,1782969041000,-531.97,0.00032999,120]
[426870319,1782969041000,-531.97,0.00032999,120]
[426870322,1782969041000,-531.97,0.00032999,120]
[426870324,1782969041000,-531.97,0.00032999,120]
[426870323,1782969041000,-531.97,0.00032999,120]
[426870326,1782969041000,-531.97,0.00032999,120]
[426870327,1782969041000,-531.97,0.00032999,120]
[426870328,1782969041000,-532.19880902,0.00032999,120]
[426870329,1782969041000,-666593.11913691,0.00033,7]
[426870325,1782969041000,-531.97,0.00032999,120]
[426870281,1782969041000,-151.0,0.00032999,7]
[426870309,1782969041000,-633.45013915,0.00032999,120]
[426870304,1782969041000,-263.750933,0.00032999,7]
[426870302,1782969041000,-263.750933,0.00032999,7]
[426870275,1782969041000,-151.0,0.00032999,7]
[426870279,1782969041000,-151.0,0.00032999,7]
[426870278,1782969041000,-151.0,0.00032999,7]
[426870284,1782969041000,-161.449095,0.00032999,7]
[426870280,1782969041000,-151.0,0.00032999,7]
[426870277,1782969041000,-151.0,0.00032999,7]
[426870283,1782969041000,-151.0,0.00032999,7]
[426870285,1782969041000,-151.0,0.00032999,7]
[426870286,1782969041000,-151.0,0.00032999,7]
[426870288,1782969041000,-151.0,0.00032999,7]
[426870287,1782969041000,-151.0,0.00032999,7]
[426870289,1782969041000,-158.446393,0.00032999,7]
[426870292,1782969041000,-158.446393,0.00032999,7]
[426870308,1782969041000,-500.0,0.00032999,120]
[426870291,1782969041000,-158.446393,0.00032999,7]
[426870296,1782969041000,-151.0,0.00032999,7]
[426870293,1782969041000,-158.446393,0.00032999,7]
[426870294,1782969041000,-151.0,0.00032999,7]
[426870295,1782969041000,-151.0,0.00032999,7]
[426870297,1782969041000,-151.0,0.00032999,7]
[426870298,1782969041000,-151.0,0.00032999,7]
[426870301,1782969041000,-197.056437,0.00032999,7]
[426870299,1782969041000,-263.750933,0.00032999,7]
[426870300,1782969041000,-285.135816,0.00032999,7]
[426870303,1782969041000,-263.750933,0.00032999,7]
[426870290,1782969041000,-151.0,0.00032999,7]
[426870335,1782969045000,-8238.89941411,0.00033,7]
[426870338,1782969046000,-1615.93039168,0.00032989,10]
[426870339,1782969046000,-746.86371324,0.00032989,10]
[426870337,1782969046000,-120.44926274,0.00032989,10]
[426870340,1782969046000,-257.02968667,0.00032989,10]
[426870342,1782969046000,-43728.95250221,0.00033,7]
[426870341,1782969046000,-3374.90694567,0.00032989,10]
[426870343,1782969046000,-463.57501254,0.00033,7]
[426870336,1782969046000,-195.91899249,0.0003286,2]
[426870344,1782969068000,150.0,0.00037039,120]
[426870350,1782969075000,182.84375535,0.00037039,120]
[426870349,1782969075000,180.42045126,0.00037039,120]
[426870348,1782969075000,189.4401539,0.00037039,120]
[426870347,1782969075000,182.84375535,0.00037039,120]
[426870346,1782969075000,151.0,0.00037039,120]
[426870345,1782969075000,182.84375535,0.00037039,120]
[426870354,1782969076000,182.84375537,0.00037039,120]
[426870351,1782969076000,500.0,0.00037039,120]
[426870352,1782969076000,180.42045126,0.00037039,120]
[426870353,1782969076000,151.0,0.00037039,120]
[426870355,1782969076000,166.62130437,0.00037039,120]
[426870357,1782969076000,166.62130437,0.00037039,120]
[426870358,1782969076000,195.79497764,0.00037039,120]
[426870359,1782969076000,166.62130437,0.00037039,120]
[426870360,1782969076000,238.56163261,0.00037039,120]
[426870361,1782969076000,166.62130437,0.00037039,120]
[426870356,1782969076000,500.0,0.00037039,120]
[426870362,1782969077000,166.62130441,0.00037039,120]
[426870363,1782969092000,614.20876808,0.00037039,120]